fUST/lending_fUST_20250531
["ID","MTS","AMOUNT","RATE_DAILY","PERIOD"]
[363271612,1748656246750,-500.0,0.00019973,2]
[363271614,1748656246761,-500.0,0.00019973,2]
[363271616,1748656246769,-505.01652487,0.00019973,2]
[363271618,1748656246779,-501.60266877,0.00019973,2]
[363271620,1748656246789,-500.0,0.00019973,2]
[363271622,1748656246799,-502.84122441,0.00019973,2]
[363271624,1748656246808,-500.0,0.00019973,2]
[363271626,1748656246817,-500.0,0.00019973,2]
[363271628,1748656246827,-215.99549423,0.00019973,2]
[363271629,1748656246836,-500.0,0.00019973,2]
[363271631,1748656246845,-500.0,0.00019973,2]
[363271633,1748656246854,-500.0,0.00019973,2]
[363271635,1748656246864,-153.841363,0.0001998,5]
[363271637,1748656246873,-430.0,0.00019998,2]
[363271639,1748656246883,-2271.2,0.00019998,2]
[363271641,1748656246892,-804.95,0.00019998,2]
[363271643,1748656246902,-299.142,0.00019999,2]
[363271645,1748656246912,-4000.0,0.0002,4]
[363271647,1748656246921,-45293.58961093,0.0002,2]
[363271649,1748656246933,-76573.0,0.0002,2]
[363271651,1748656246946,-4189.0,0.0002,2]
[363271653,1748656246955,-26330.0,0.0002,2]
[363271655,1748656246966,-5000.0,0.0002,2]
[363271656,1748656246975,-5000.0,0.0002,2]
[363271658,1748656246985,-4761.0,0.0002,2]
[363271659,1748656246994,-155.00261984,0.0002,2]
[363271661,1748656247004,-7162.0,0.0002,10]
[363271662,1748656247014,-188107.57777146,0.0002,2]
[363271664,1748656247024,-151.0,0.0002,2]
[363271665,1748656247032,-151.0,0.0002,2]
[363271667,1748656247042,-151.0,0.0002,2]
[363271668,1748656247051,-151.0,0.0002,2]
[363271670,1748656247060,-151.0,0.0002,2]
[363271671,1748656247069,-151.0,0.0002,2]
[363271673,1748656247078,-9978.0,0.0002,2]
[363271674,1748656247087,-231.430814,0.0002,2]
[363271676,1748656247096,-231.430814,0.0002,2]
[363271677,1748656247106,-231.430814,0.0002,2]
[363271679,1748656247115,-231.430814,0.0002,2]
[363271680,1748656247124,-231.430814,0.0002,2]
[363271682,1748656247134,-231.430814,0.0002,2]
[363271683,1748656247143,-151.0,0.0002,2]
[363271685,1748656247152,-151.0,0.0002,2]
[363271686,1748656247162,-151.0,0.0002,2]
[363271687,1748656247171,-151.0,0.0002,2]
[363271689,1748656247180,-151.0,0.0002,2]
[363271690,1748656247191,-151.0,0.0002,2]
[363271692,1748656247200,-151.0,0.0002,2]
[363271694,1748656247210,-151.0,0.0002,2]
[363271695,1748656247219,-153.80719698,0.0002,7]
[363271697,1748656247228,-151.0,0.0002,2]
[363271698,1748656247237,-151.0,0.0002,2]
[363271700,1748656247246,-207.842734,0.0002,2]
[363271702,1748656247256,-207.842734,0.0002,2]
[363271703,1748656247265,-207.842734,0.0002,2]
[363271705,1748656247274,-207.842734,0.0002,2]
[363271706,1748656247283,-207.842734,0.0002,2]
[363271708,1748656247292,-207.842734,0.0002,2]
[363271709,1748656247301,-151.360701,0.0002,2]
[363271711,1748656247311,-151.0,0.0002,2]
[363271712,1748656247320,-151.0,0.0002,2]
[363271714,1748656247329,-151.0,0.0002,2]
[363271715,1748656247338,-151.0,0.0002,2]
[363271717,1748656247347,-151.0,0.0002,2]
[363271719,1748656247356,-151.0,0.0002,2]
[363271720,1748656247366,-365.194504,0.0002,2]
[363271722,1748656247375,-365.194504,0.0002,2]
[363271723,1748656247384,-365.194504,0.0002,2]
[363271725,1748656247393,-365.194504,0.0002,2]
[363271727,1748656247402,-162.87142985,0.0002,7]
[363271728,1748656247412,-156.935025,0.0002,2]
[363271730,1748656247421,-156.935025,0.0002,2]
[363271731,1748656247430,-156.935025,0.0002,2]
[363271732,1748656247439,-156.935025,0.0002,2]
[363271734,1748656247448,-151.0,0.0002,2]
[363271736,1748656247457,-206.181133,0.0002,2]
[363271737,1748656247466,-206.181133,0.0002,2]
[363271739,1748656247475,-206.181133,0.0002,2]
[363271740,1748656247485,-206.181133,0.0002,2]
[363271742,1748656247496,-151.0,0.0002,2]
[363271744,1748656247505,-151.0,0.0002,2]
[363271745,1748656247514,-151.0,0.0002,2]
[363271747,1748656247522,-151.664068,0.0002,2]
[363271748,1748656247531,-367.193508,0.0002,2]
[363271750,1748656247541,-367.193508,0.0002,2]
[363271752,1748656247550,-367.193508,0.0002,2]
[363271753,1748656247559,-367.193508,0.0002,2]
[363271755,1748656247568,-151.0,0.0002,2]
[363271764,1748656247683,-151.0,0.0002,2]
[363271765,1748656247705,-151.0,0.0002,2]
[363271767,1748656247714,-151.0,0.0002,2]
[363271769,1748656247723,-248.680071,0.0002,2]
[363271770,1748656247732,-151.0,0.0002,2]
[363271772,1748656247742,-151.0,0.0002,2]
[363271773,1748656247751,-538.945644,0.0002,2]
[363271775,1748656247761,-538.945644,0.0002,2]
[363271777,1748656247770,-538.945644,0.0002,2]
[363271778,1748656247779,-151.0,0.0002,2]
[363271780,1748656247788,-151.0,0.0002,2]
[363271781,1748656247797,-151.0,0.0002,2]
[363271783,1748656247807,-151.0,0.0002,2]
[363271785,1748656247816,-151.0,0.0002,2]
[363271786,1748656247825,-151.0,0.0002,2]
[363271788,1748656247834,-151.0,0.0002,2]
[363271789,1748656247843,-151.0,0.0002,2]
[363271791,1748656247853,-151.0,0.0002,2]
[363271793,1748656247862,-2748.309826,0.0002,2]
[363271794,1748656247871,-2748.309826,0.0002,2]
[363271796,1748656247880,-2748.309826,0.0002,2]
[363271797,1748656247889,-2748.309826,0.0002,2]
[363271799,1748656247898,-2748.309826,0.0002,2]
[363271801,1748656247907,-2748.309826,0.0002,2]
[363271802,1748656247916,-217.302792,0.0002,2]
[363271804,1748656247926,-217.302792,0.0002,2]
[363271805,1748656247941,-217.302792,0.0002,2]
[363271807,1748656247951,-217.302792,0.0002,2]
[363271809,1748656247959,-217.302792,0.0002,2]
[363271810,1748656247968,-217.302792,0.0002,2]
[363271812,1748656247978,-151.0,0.0002,2]
[363271813,1748656247987,-151.0,0.0002,2]
[363271815,1748656247996,-151.0,0.0002,2]
[363271817,1748656248006,-151.0,0.0002,2]
[363271818,1748656248016,-184.30823,0.0002,2]
[363271820,1748656248026,-151.0,0.0002,2]
[363271821,1748656248035,-211.725309,0.0002,2]
[363271823,1748656248045,-797.659667,0.0002,2]
[363271824,1748656248054,-797.659667,0.0002,2]
[363271826,1748656248063,-797.659667,0.0002,2]
[363271828,1748656248074,-797.659667,0.0002,2]
[363271829,1748656248083,-797.659667,0.0002,2]
[363271831,1748656248092,-797.659667,0.0002,2]
[363271833,1748656248102,-151.0,0.0002,2]
[363271834,1748656248111,-151.0,0.0002,2]
[363271836,1748656248120,-151.0,0.0002,2]
[363271837,1748656248130,-151.0,0.0002,2]
[363271839,1748656248139,-151.0,0.0002,2]
[363271841,1748656248149,-151.0,0.0002,2]
[363271842,1748656248159,-152.098178,0.0002,2]
[363271844,1748656248169,-151.0,0.0002,2]
[363271845,1748656248179,-151.0,0.0002,2]
[363271847,1748656248191,-151.0,0.0002,2]
[363271849,1748656248202,-176.019814,0.0002,2]
[363271850,1748656248211,-176.019814,0.0002,2]
[363271852,1748656248222,-176.019814,0.0002,2]
[363271854,1748656248231,-176.019814,0.0002,2]
[363271855,1748656248241,-453.309988,0.0002,2]
[363271857,1748656248251,-453.309988,0.0002,2]
[363271858,1748656248260,-453.309988,0.0002,2]
[363271860,1748656248270,-453.309988,0.0002,2]
[363271861,1748656248279,-453.309988,0.0002,2]
[363271863,1748656248288,-453.309988,0.0002,2]
[363271865,1748656248297,-531.785592,0.0002,2]
[363271866,1748656248307,-531.785592,0.0002,2]
[363271868,1748656248317,-531.785592,0.0002,2]
[363271869,1748656248326,-531.785592,0.0002,2]
[363271871,1748656248335,-531.785592,0.0002,2]
[363271873,1748656248344,-531.785592,0.0002,2]
[363271874,1748656248353,-1161.758364,0.0002,2]
[363271876,1748656248363,-1161.758364,0.0002,2]
[363271877,1748656248372,-1161.758364,0.0002,2]
[363271879,1748656248382,-1161.758364,0.0002,2]
[363271881,1748656248391,-1161.758364,0.0002,2]
[363271882,1748656248401,-1161.758364,0.0002,2]
[363271884,1748656248411,-151.0,0.0002,2]
[363271886,1748656248421,-151.0,0.0002,2]
[363271887,1748656248430,-151.0,0.0002,2]
[363271889,1748656248440,-151.0,0.0002,2]
[363271890,1748656248451,-575.979099,0.0002,2]
[363271892,1748656248460,-575.979099,0.0002,2]
[363271894,1748656248469,-575.979099,0.0002,2]
[363271895,1748656248478,-575.979099,0.0002,2]
[363271897,1748656248488,-575.979099,0.0002,2]
[363271898,1748656248497,-575.979099,0.0002,2]
[363271900,1748656248507,-151.0,0.0002,2]
[363271902,1748656248516,-151.0,0.0002,2]
[363271903,1748656248525,-151.0,0.0002,2]
[363271905,1748656248535,-1256.43873,0.0002,2]
[363271906,1748656248544,-1256.43873,0.0002,2]
[363271908,1748656248554,-1256.43873,0.0002,2]
[363271910,1748656248567,-1256.43873,0.0002,2]
[363271911,1748656248577,-1256.43873,0.0002,2]
[363271913,1748656248586,-1256.43873,0.0002,2]
[363271915,1748656248595,-2802.639793,0.0002,2]
[363271916,1748656248605,-2802.639793,0.0002,2]
[363271918,1748656248615,-2802.639793,0.0002,2]
[363271919,1748656248624,-2802.639793,0.0002,2]
[363271921,1748656248634,-2802.639793,0.0002,2]
[363271923,1748656248643,-2802.639793,0.0002,2]
[363271924,1748656248653,-1000.0,0.0002,5]
[363271926,1748656248663,-153.014895,0.0002,2]
[363271928,1748656248672,-161.93955036,0.0002,7]
[363271929,1748656248681,-161.93955036,0.0002,7]
[363271931,1748656248691,-151.0,0.0002,2]
[363271932,1748656248700,-151.0,0.0002,2]
[363271934,1748656248709,-151.0,0.0002,2]
[363271935,1748656248719,-300.0,0.0002,2]
[363271937,1748656248728,-152.724527,0.0002,2]
[363271939,1748656248738,-151.0,0.0002,2]
[363271940,1748656248747,-151.0,0.0002,2]
[363271942,1748656248757,-151.0,0.0002,2]
[363271944,1748656248766,-151.0,0.0002,2]
[363271946,1748656248776,-151.0,0.0002,2]
[363271947,1748656248785,-151.0,0.0002,2]
[363271950,1748656248795,-151.0,0.0002,2]
[363271951,1748656248805,-151.0,0.0002,2]
[363271953,1748656248815,-185.21695164,0.0002,2]
[363271955,1748656248825,-195.589229,0.0002,2]
[363271958,1748656248836,-195.589229,0.0002,2]
[363271960,1748656248845,-195.589229,0.0002,2]
[363271962,1748656248854,-151.85193045,0.0002,2]
[363271963,1748656248863,-195.589229,0.0002,2]
[363271964,1748656248872,-195.589229,0.0002,2]
[363271965,1748656248881,-195.589229,0.0002,2]
[363271966,1748656248890,-150.0,0.0002,30]
[363271967,1748656248899,-1744.19,0.0002,2]
[363271968,1748656248908,-1425.95,0.0002,2]
[363271969,1748656248918,-529.54,0.0002,2]
[363271970,1748656248927,-612.2,0.0002,2]
[363271971,1748656248941,-956.47,0.0002,2]
[363271972,1748656248950,-931.930376,0.0002,2]
[363271973,1748656248959,-931.930376,0.0002,2]
[363271974,1748656248967,-931.930376,0.0002,2]
[363271975,1748656248976,-931.930376,0.0002,2]
[363271976,1748656248986,-931.930376,0.0002,2]
[363271977,1748656248995,-931.930376,0.0002,2]
[363271978,1748656249003,-160.0,0.0002,3]
[363271979,1748656249012,-862.38,0.0002,2]
[363271980,1748656249021,-2200.0,0.0002,2]
[363271981,1748656249031,-495.01,0.0002,2]
[363271982,1748656249040,-432.661826,0.0002,2]
[363271983,1748656249049,-432.661826,0.0002,2]
[363271984,1748656249058,-432.661826,0.0002,2]
[363271985,1748656249067,-842.5625,0.0002,3]
[363271986,1748656249076,-432.661826,0.0002,2]
[363271987,1748656249086,-432.661826,0.0002,2]
[363271988,1748656249095,-432.661826,0.0002,2]
[363271989,1748656249104,-430.0,0.0002,2]
[363271990,1748656249113,-151.0,0.0002,2]
[363271991,1748656249122,-151.0,0.0002,2]
[363271992,1748656249132,-151.0,0.0002,2]
[363271993,1748656249142,-151.0,0.0002,2]
[363271994,1748656249151,-151.0,0.0002,2]
[363271995,1748656249162,-151.0,0.0002,2]
[363271996,1748656249172,-12663.11115519,0.0002,3]
[363271997,1748656249182,-151.0,0.0002,2]
[363271998,1748656249195,-258.047693,0.0002,2]
[363271999,1748656249205,-430.0,0.0002,2]
[363272000,1748656249215,-151.0,0.0002,2]
[363272001,1748656249224,-151.0,0.0002,2]
[363272002,1748656249234,-151.0,0.0002,2]
[363272003,1748656249244,-430.0,0.0002,2]
[363272005,1748656249254,-192.463237,0.0002,2]
[363272006,1748656249264,-192.463237,0.0002,2]
[363272007,1748656249274,-1528.02,0.0002,2]
[363272008,1748656249284,-192.463237,0.0002,2]
[363272010,1748656249294,-192.463237,0.0002,2]
[363272011,1748656249304,-192.463237,0.0002,2]
[363272012,1748656249314,-192.463237,0.0002,2]
[363272014,1748656249324,-151.0,0.0002,2]
[363272016,1748656249335,-2554.19,0.0002,2]
[363272018,1748656249345,-151.0,0.0002,2]
[363272020,1748656249356,-151.0,0.0002,2]
[363272022,1748656249367,-1699.58,0.0002,2]
[363272024,1748656249378,-500.0,0.0002,2]
[363272026,1748656249389,-561.62,0.0002,2]
[363272028,1748656249399,-948.43,0.0002,2]
[363272030,1748656249409,-795.03,0.0002,2]
[363272032,1748656249419,-658.45,0.0002,2]
[363272034,1748656249429,-271.876585,0.0002,2]
[363272036,1748656249439,-271.876585,0.0002,2]
[363272038,1748656249454,-271.876585,0.0002,2]
[363272040,1748656249464,-271.876585,0.0002,2]
[363272042,1748656249474,-271.876585,0.0002,2]
[363272044,1748656249484,-271.876585,0.0002,2]
[363272046,1748656249495,-1192.93,0.0002,2]
[363272048,1748656249505,-212.7380601,0.0002,3]
[363272050,1748656249514,-733.23,0.0002,2]
[363272052,1748656249523,-962.85,0.0002,2]
[363272054,1748656249533,-260.4103811,0.00020003,2]
[363272056,1748656249544,-160.0,0.00020056,6]
[363272058,1748656249554,-270.0455652,0.00020058,2]
[363272060,1748656249564,-1355.49097074,0.0002007,30]
[363272062,1748656249574,-4031.54733515,0.00020072,2]
[363272064,1748656249583,-280.03725112,0.00020113,2]
[363272066,1748656249592,-2500.0,0.00020164,2]
[363272068,1748656249602,-290.39862941,0.00020168,2]
[363272070,1748656249611,-5000.0,0.00020177,2]
[363272072,1748656249621,-208.083883,0.00020187,2]
[363272074,1748656249630,-1355.49097074,0.00020207,30]
[363272076,1748656249640,-301.1433787,0.00020223,2]
[363272078,1748656249649,-160.0,0.00020233,7]
[363272080,1748656249659,-206.0,0.0002025,2]
[363272082,1748656249668,-1400.0,0.0002026,2]
[363272084,1748656249678,-432.24,0.00020272,2]
[363272086,1748656249688,-982.9,0.00020272,2]
[363272088,1748656249702,-430.0,0.00020272,2]
[363272090,1748656249712,-430.0,0.00020272,2]
[363272092,1748656249722,-2271.2,0.00020272,2]
[363272094,1748656249732,-804.95,0.00020272,2]
[363272096,1748656249742,-1744.19,0.00020273,2]
[363272098,1748656249751,-1425.95,0.00020273,2]
[363272100,1748656249761,-529.54,0.00020273,2]
[363272102,1748656249771,-612.2,0.00020273,2]
[363272104,1748656249781,-956.47,0.00020273,2]
[363272106,1748656249790,-862.38,0.00020273,2]
[363272108,1748656249799,-495.01,0.00020273,2]
[363272110,1748656249809,-430.0,0.00020273,2]
[363272112,1748656249818,-430.0,0.00020273,2]
[363272114,1748656249827,-430.0,0.00020273,2]
[363272116,1748656249837,-1528.02,0.00020273,2]
[363272118,1748656249846,-2554.19,0.00020273,2]
[363272120,1748656249855,-1699.58,0.00020273,2]
[363272122,1748656249864,-561.62,0.00020273,2]
[363272124,1748656249874,-948.43,0.00020273,2]
[363272126,1748656249884,-795.03,0.00020273,2]
[363272128,1748656249893,-658.45,0.00020273,2]
[363272130,1748656249902,-1192.93,0.00020273,2]
[363272132,1748656249911,-733.23,0.00020273,2]
[363272134,1748656249921,-962.85,0.00020273,2]
[363272136,1748656249932,-166.0,0.00020274,2]
[363272138,1748656249947,-582.39940814,0.00020289,2]
[363272140,1748656249956,-4031.54733515,0.00020314,3]
[363272142,1748656249966,-5627.1,0.00020331,2]
[363272144,1748656249975,-1355.49097074,0.00020344,30]
[363272145,1748656249985,-500.0,0.00020378,2]
[363272147,1748656249995,-572.1885402,0.00020384,2]
[363272149,1748656250004,-312.2537965,0.00020384,2]
[363272151,1748656250016,-572.1885402,0.00020384,2]
[363272153,1748656250026,-153.0,0.00020384,2]
[363272156,1748656250036,-572.1885402,0.00020384,2]
[363272158,1748656250045,-160.0,0.0002041,8]
[363272160,1748656250055,-153.0,0.00020438,2]
[363272161,1748656250064,-156.6720931,0.00020466,2]
[363272164,1748656250074,-176.414694,0.00020466,2]
[363272166,1748656250083,-312.5513002,0.00020466,2]
[363272167,1748656250093,-572.1885402,0.00020466,2]
[363272170,1748656250103,-572.1885402,0.00020466,2]
[363272171,1748656250113,-158.4280407,0.00020466,2]
[363272174,1748656250123,-352.829388,0.00020466,2]
[363272175,1748656250132,-572.1885402,0.00020466,2]
[363272177,1748656250142,-158.4280407,0.00020466,2]
[363272179,1748656250151,-1144.1627657,0.00020466,2]
[363272181,1748656250160,-158.4280407,0.00020466,2]
[363272183,1748656250170,-1144.3770804,0.00020466,2]
[363272186,1748656250180,-1355.49097074,0.00020481,30]
[363272198,1748656250292,-192.2709547,0.00020493,2]
[363272200,1748656250302,-166.2649272,0.00020493,2]
[363272202,1748656250311,-154.832932,0.00020493,2]
[363272204,1748656250320,-153.0,0.00020493,2]
[363272206,1748656250330,-153.0,0.00020493,2]
[363272208,1748656250339,-153.0,0.00020493,2]
[363272210,1748656250348,-2000.0,0.000205,2]
[363272212,1748656250357,-1000.0,0.00020521,2]
[363272214,1748656250366,-1000.0,0.00020521,2]
[363272216,1748656250375,-1000.0,0.00020521,2]
[363272218,1748656250384,-1002.48531816,0.00020521,2]
[363272220,1748656250393,-1000.0,0.00020521,2]
[363272222,1748656250402,-194.91426386,0.00020521,2]
[363272224,1748656250411,-1000.0,0.00020521,2]
[363272226,1748656250421,-1000.0,0.00020521,2]
[363272228,1748656250430,-1003.33743429,0.00020521,2]
[363272230,1748656250440,-1000.0,0.00020521,2]
[363272231,1748656250451,-506.58068065,0.00020521,2]
[363272233,1748656250460,-1000.0,0.00020521,2]
[363272235,1748656250470,-570.39206092,0.00020521,2]
[363272237,1748656250480,-432.82338581,0.00020521,2]
[363272239,1748656250489,-1000.0,0.00020521,2]
[363272241,1748656250499,-1004.78597977,0.00020521,2]
[363272243,1748656250508,-1000.0,0.00020521,2]
[363272245,1748656250517,-1149.02489389,0.00020521,2]
[363272247,1748656250526,-1003.78201523,0.00020521,2]
[363272249,1748656250535,-1000.0,0.00020521,2]
[363272251,1748656250544,-402.71138246,0.00020521,2]
[363272253,1748656250554,-1000.0,0.00020521,2]
[363272255,1748656250563,-1000.0,0.00020521,2]
[363272257,1748656250572,-501.67135089,0.00020521,2]
[363272259,1748656250581,-554.54632245,0.00020521,2]
[363272261,1748656250591,-1200.0,0.00020521,2]
[363272263,1748656250600,-1000.0,0.00020521,2]
[363272265,1748656250609,-1000.0,0.00020521,2]
[363272267,1748656250618,-1000.0,0.00020521,2]
[363272269,1748656250627,-1000.0,0.00020521,2]
[363272271,1748656250636,-1006.316053,0.00020521,2]
[363272273,1748656250645,-1000.0,0.00020521,2]
[363272275,1748656250654,-198.23089118,0.00020521,2]
[363272277,1748656250663,-1000.0,0.00020521,2]
[363272279,1748656250672,-1000.0,0.00020521,2]
[363272281,1748656250681,-931.930376,0.00020521,2]
[363272283,1748656250690,-931.930376,0.00020521,2]
[363272285,1748656250701,-432.24,0.00020546,2]
[363272286,1748656250710,-982.9,0.00020546,2]
[363272289,1748656250721,-430.0,0.00020546,2]
[363272290,1748656250730,-430.0,0.00020546,2]
[363272292,1748656250738,-2271.2,0.00020546,2]
[363272294,1748656250748,-804.95,0.00020546,2]
[363272296,1748656250756,-160.75014317,0.00020547,2]
[363272298,1748656250766,-151.0,0.00020547,2]
[363272300,1748656250775,-151.0,0.00020547,2]
[363272302,1748656250784,-231.430814,0.00020547,2]
[363272304,1748656250793,-231.430814,0.00020547,2]
[363272306,1748656250802,-151.0,0.00020547,2]
[363272308,1748656250811,-207.842734,0.00020547,2]
[363272310,1748656250820,-207.842734,0.00020547,2]
[363272312,1748656250829,-151.0,0.00020547,2]
[363272314,1748656250838,-270.353566,0.00020547,2]
[363272316,1748656250848,-365.194504,0.00020547,2]
[363272318,1748656250857,-365.194504,0.00020547,2]
[363272320,1748656250867,-206.181133,0.00020547,2]
[363272322,1748656250875,-206.181133,0.00020547,2]
[363272324,1748656250885,-151.0,0.00020547,2]
[363272326,1748656250895,-367.193508,0.00020547,2]
[363272328,1748656250905,-367.193508,0.00020547,2]
[363272330,1748656250914,-151.0,0.00020547,2]
[363272332,1748656250923,-151.0,0.00020547,2]
[363272334,1748656250933,-538.945644,0.00020547,2]
[363272336,1748656250948,-538.945644,0.00020547,2]
[363272338,1748656250958,-255.090512,0.00020547,2]
[363272340,1748656250967,-151.0,0.00020547,2]
[363272342,1748656250977,-151.0,0.00020547,2]
[363272344,1748656250989,-2748.309826,0.00020547,2]
[363272346,1748656250998,-2748.309826,0.00020547,2]
[363272348,1748656251007,-217.302792,0.00020547,2]
[363272350,1748656251017,-217.302792,0.00020547,2]
[363272352,1748656251027,-151.0,0.00020547,2]
[363272354,1748656251037,-797.659667,0.00020547,2]
[363272356,1748656251046,-797.659667,0.00020547,2]
[363272358,1748656251055,-151.0,0.00020547,2]
[363272360,1748656251065,-152.852177,0.00020547,2]
[363272362,1748656251076,-151.0,0.00020547,2]
[363272364,1748656251085,-176.019814,0.00020547,2]
[363272366,1748656251094,-176.019814,0.00020547,2]
[363272368,1748656251104,-453.309988,0.00020547,2]
[363272370,1748656251113,-453.309988,0.00020547,2]
[363272372,1748656251122,-531.785592,0.00020547,2]
[363272374,1748656251131,-531.785592,0.00020547,2]
[363272375,1748656251140,-1161.758364,0.00020547,2]
[363272377,1748656251150,-1161.758364,0.00020547,2]
[363272379,1748656251159,-151.0,0.00020547,2]
[363272381,1748656251169,-575.979099,0.00020547,2]
[363272383,1748656251179,-575.979099,0.00020547,2]
[363272385,1748656251188,-151.0,0.00020547,2]
[363272387,1748656251199,-1256.43873,0.00020547,2]
[363272389,1748656251208,-1256.43873,0.00020547,2]
[363272391,1748656251217,-2802.639793,0.00020547,2]
[363272393,1748656251226,-2802.639793,0.00020547,2]
[363272395,1748656251236,-151.0,0.00020547,2]
[363272397,1748656251246,-151.0,0.00020547,2]
[363272399,1748656251256,-233.850072,0.00020547,2]
[363272401,1748656251265,-195.589229,0.00020547,2]
[363272403,1748656251274,-195.589229,0.00020547,2]
[363272405,1748656251284,-1744.19,0.00020547,2]
[363272407,1748656251293,-1425.95,0.00020547,2]
[363272409,1748656251303,-529.54,0.00020547,2]
[363272411,1748656251313,-612.2,0.00020547,2]
[363272413,1748656251323,-956.47,0.00020547,2]
[363272415,1748656251332,-862.38,0.00020547,2]
[363272417,1748656251342,-495.01,0.00020547,2]
[363272419,1748656251352,-432.661826,0.00020547,2]
[363272421,1748656251361,-432.661826,0.00020547,2]
[363272423,1748656251370,-430.0,0.00020547,2]
[363272425,1748656251380,-151.0,0.00020547,2]
[363272427,1748656251390,-151.0,0.00020547,2]
[363272429,1748656251400,-151.0,0.00020547,2]
[363272431,1748656251409,-430.0,0.00020547,2]
[363272433,1748656251418,-430.0,0.00020547,2]
[363272435,1748656251427,-1528.02,0.00020547,2]
[363272437,1748656251436,-192.463237,0.00020547,2]
[363272439,1748656251447,-192.463237,0.00020547,2]
[363272441,1748656251457,-2554.19,0.00020547,2]
[363272443,1748656251466,-151.0,0.00020547,2]
[363272445,1748656251476,-1699.58,0.00020547,2]
[363272446,1748656251486,-561.62,0.00020547,2]
[363272448,1748656251495,-948.43,0.00020547,2]
[363272450,1748656251505,-795.03,0.00020547,2]
[363272452,1748656251514,-658.45,0.00020547,2]
[363272454,1748656251524,-271.876585,0.00020547,2]
[363272456,1748656251533,-271.876585,0.00020547,2]
[363272458,1748656251543,-1192.93,0.00020547,2]
[363272460,1748656251553,-733.23,0.00020547,2]
[363272462,1748656251563,-962.85,0.00020547,2]
[363272464,1748656251573,-151.680446,0.00020548,2]
[363272467,1748656251582,-151.0,0.00020555,2]
[363272468,1748656251592,-151.0,0.00020555,2]
[363272470,1748656251601,-4031.54733515,0.00020555,3]
[363272472,1748656251610,-151.0,0.00020564,2]
[363272474,1748656251619,-156.935025,0.00020564,2]
[363272476,1748656251629,-156.935025,0.00020564,2]
[363272478,1748656251638,-160.0,0.00020586,9]
[363272480,1748656251648,-582.39940814,0.00020589,2]
[363272482,1748656251656,-206.0,0.000206,2]
[363272484,1748656251665,-842.5625,0.000206,3]
[363272486,1748656251674,-12663.11115519,0.000206,3]
[363272488,1748656251684,-1355.49097074,0.00020618,30]
[363272490,1748656251696,-842.5625,0.000207,30]
[363272492,1748656251706,-12663.11115519,0.000207,30]
[363272494,1748656251715,-212.7380601,0.000207,30]
[363272496,1748656251725,-3000.0,0.00020712,2]
[363272498,1748656251734,-223.0315306,0.00020723,2]
[363272500,1748656251743,-5000.0,0.00020725,2]
[363272502,1748656251752,-1355.49097074,0.00020755,30]